fUSD/lending_fUSD_20250911
["ID","MTS","AMOUNT","RATE_DAILY","PERIOD"]
[384892590,1757620265119,-400.0,0.00027671,7]
[384892591,1757620265128,-447.85,0.00027671,7]
[384892592,1757620265137,-400.0,0.00027671,7]
[384892593,1757620265146,-976.57,0.00027671,7]
[384892594,1757620265155,-400.0,0.00027671,7]
[384892595,1757620265165,-1934.19,0.00027671,7]
[384892596,1757620265174,-1759.27,0.00027671,7]
[384892597,1757620265183,-400.0,0.00027671,7]
[384892598,1757620265196,-400.0,0.00027671,7]
[384892599,1757620265457,-1699.57,0.00027671,7]
[384892600,1757620265466,-400.0,0.00027671,7]
[384892601,1757620265478,-1281.61,0.00027671,7]
[384892602,1757620265488,-400.0,0.00027671,7]
[384892603,1757620265499,-400.0,0.00027671,7]
[384892604,1757620265508,-417.7644498,0.00027671,7]
[384892605,1757620265516,-400.0,0.00027671,7]
[384892606,1757620265525,-400.0,0.00027671,7]
[384892607,1757620265534,-400.0,0.00027671,7]
[384892608,1757620265544,-3618.27,0.00027671,7]
[384892609,1757620265553,-548.49,0.00027671,7]
[384892610,1757620265562,-400.0,0.00027671,7]
[384892611,1757620265571,-400.0,0.00027671,7]
[384892612,1757620265580,-400.0,0.00027671,7]
[384892613,1757620265590,-1442.9,0.00027671,7]
[384892614,1757620265599,-2023.83,0.00027671,7]
[384892615,1757620265608,-874.32,0.00027671,7]
[384892616,1757620265618,-400.0,0.00027671,7]
[384892617,1757620265628,-559.89,0.00027671,7]
[384892618,1757620265637,-400.0,0.00027671,7]
[384892619,1757620265646,-400.0,0.00027671,7]
[384892620,1757620265656,-1870.52,0.00027671,7]
[384892621,1757620265665,-400.0,0.00027671,7]
[384892622,1757620265674,-1038.88,0.00027671,7]
[384892623,1757620265684,-421.05,0.00027671,7]
[384892624,1757620265693,-3245.04,0.00027671,7]
[384892625,1757620265702,-2849.39,0.00027671,7]
[384892626,1757620265711,-400.0,0.00027671,7]
[384892627,1757620265724,-900.64,0.00027671,7]
[384892628,1757620265733,-411.2695607,0.00027671,7]
[384892629,1757620265743,-1015.4,0.00027671,7]
[384892630,1757620265752,-2061.18,0.00027671,7]
[384892631,1757620265763,-634.56,0.00027671,7]
[384892632,1757620265772,-519.23,0.00027671,7]
[384892633,1757620265781,-400.0,0.00027671,7]
[384892634,1757620265791,-1273.03,0.00027671,7]
[384892635,1757620265802,-843.9,0.00027671,7]
[384892636,1757620265811,-782.32,0.00027671,7]
[384892637,1757620265820,-439.14763389,0.00027671,7]
[384892638,1757620265829,-1222.09,0.00027671,7]
[384892639,1757620265838,-400.0,0.00027671,7]
[384892640,1757620265848,-400.0,0.00027671,7]
[384892641,1757620265857,-400.0,0.00027671,7]
[384892642,1757620265866,-2214.49,0.00027671,7]
[384892643,1757620265875,-1023.46,0.00027671,7]
[384892644,1757620265885,-935.93,0.00027671,7]
[384892645,1757620265894,-400.0,0.00027671,7]
[384892646,1757620265902,-400.0,0.00027671,7]
[384892647,1757620265911,-1772.64,0.00027671,7]
[384892648,1757620265920,-1217.98,0.00027671,7]
[384892649,1757620265930,-400.0,0.00027671,7]
[384892650,1757620265939,-400.0,0.00027671,7]
[384892651,1757620265949,-400.0,0.00027671,7]
[384892652,1757620265958,-2675.98,0.00027671,7]
[384892653,1757620265967,-400.0,0.00027671,7]
[384892654,1757620265976,-989.51,0.00027671,7]
[384892655,1757620265985,-2500.28,0.00027671,7]
[384892656,1757620265995,-400.0,0.00027671,7]
[384892657,1757620266004,-1883.38,0.00027671,7]
[384892658,1757620266014,-400.0,0.00027671,7]
[384892659,1757620266024,-1326.72,0.00027671,7]
[384892660,1757620266033,-1539.36,0.00027671,7]
[384892661,1757620266043,-400.0,0.00027671,7]
[384892662,1757620266052,-571.87,0.00027671,7]
[384892663,1757620266062,-618.03,0.00027671,7]
[384892664,1757620266072,-400.0,0.00027671,7]
[384892665,1757620266081,-400.0,0.00027671,7]
[384892666,1757620266090,-656.28,0.00027671,7]
[384892667,1757620266100,-400.0,0.00027671,7]
[384892668,1757620266109,-438.12892707,0.00027671,7]
[384892669,1757620266119,-400.0,0.00027671,7]
[384892670,1757620266127,-2951.51,0.00027671,7]
[384892671,1757620266137,-2570.45,0.00027671,7]
[384892672,1757620266146,-400.0,0.00027671,7]
[384892673,1757620266155,-403.24533042,0.00027671,7]
[384892674,1757620266164,-400.0,0.00027671,7]
[384892675,1757620266175,-322.50572453,0.00027671,7]
[384892676,1757620266184,-400.0,0.00027671,7]
[384892677,1757620266193,-400.0,0.00027671,7]
[384892678,1757620266202,-1100.31,0.00027671,7]
[384892679,1757620266211,-1141.14,0.00027671,7]
[384892680,1757620266221,-557.19,0.00027671,7]
[384892681,1757620266230,-400.0,0.00027671,7]
[384892682,1757620266239,-2877.82,0.00027671,7]
[384892683,1757620266249,-411.89753451,0.00027671,7]
[384892684,1757620266259,-687.63,0.00027671,7]
[384892685,1757620266268,-400.0,0.00027671,7]
[384892686,1757620266277,-1184.56,0.00027671,7]
[384892687,1757620266287,-2188.44,0.00027671,7]
[384892688,1757620266296,-2081.41,0.00027671,7]
[384892689,1757620266305,-400.0,0.00027671,7]
[384892690,1757620266314,-400.0,0.00027671,7]
[384892691,1757620266323,-2396.81,0.00027671,7]
[384892692,1757620266332,-400.0,0.00027671,7]
[384892693,1757620266341,-400.0,0.00027671,7]
[384892694,1757620266350,-400.0,0.00027671,7]
[384892695,1757620266359,-400.0,0.00027671,7]
[384892696,1757620266368,-401.77,0.00027671,7]
[384892697,1757620266378,-1537.93,0.00027671,7]
[384892698,1757620266386,-400.0,0.00027671,7]
[384892699,1757620266395,-820.95,0.00027671,7]
[384892700,1757620266405,-850.53,0.00027671,7]
[384892701,1757620266414,-400.0,0.00027671,7]
[384892702,1757620266425,-400.0,0.00027671,7]
[384892703,1757620266434,-400.0,0.00027671,7]
[384892704,1757620266443,-2492.22,0.00027671,7]
[384892705,1757620266453,-605.15,0.00027671,7]
[384892706,1757620266462,-400.0,0.00027671,7]
[384892707,1757620266471,-2051.8,0.00027671,7]
[384892708,1757620266480,-400.0,0.00027671,7]
[384892709,1757620266489,-400.0,0.00027671,7]
[384892710,1757620266499,-1662.8,0.00027671,7]
[384892711,1757620266507,-1492.71,0.00027671,7]
[384892712,1757620266516,-400.0,0.00027671,7]
[384892713,1757620266525,-1637.3,0.00027671,7]
[384892714,1757620266534,-2072.33,0.00027671,7]
[384892715,1757620266543,-2943.27,0.00027671,7]
[384892716,1757620266552,-400.0,0.00027671,7]
[384892717,1757620266561,-649.22,0.00027671,7]
[384892718,1757620266570,-444.61,0.00027671,7]
[384892719,1757620266579,-400.0,0.00027671,7]
[384892720,1757620266589,-493.12210978,0.00027671,7]
[384892721,1757620266598,-2271.16,0.00027671,7]
[384892722,1757620266607,-400.0,0.00027671,7]
[384892723,1757620266616,-407.3644811,0.00027671,7]
[384892724,1757620266625,-400.0,0.00027671,7]
[384892725,1757620266634,-2496.92,0.00027671,7]
[384892726,1757620266643,-1193.39,0.00027671,7]
[384892727,1757620266653,-400.0,0.00027671,7]
[384892728,1757620266663,-400.0,0.00027671,7]
[384892729,1757620266672,-801.45,0.00027671,7]
[384892730,1757620266682,-1982.97,0.00027671,7]
[384892731,1757620266691,-1306.21,0.00027671,7]
[384892732,1757620266700,-400.0,0.00027671,7]
[384892733,1757620266709,-400.0,0.00027671,7]
[384892734,1757620266719,-400.0,0.00027671,7]
[384892735,1757620266731,-400.0,0.00027671,7]
[384892736,1757620266740,-400.0,0.00027671,7]
[384892737,1757620266749,-1975.11,0.00027671,7]
[384892738,1757620266758,-2985.47,0.00027671,7]
[384892739,1757620266768,-428.61,0.00027671,7]
[384892740,1757620266777,-569.13,0.00027671,7]
[384892741,1757620266786,-3085.55,0.00027671,7]
[384892742,1757620266795,-2419.46,0.00027671,7]
[384892743,1757620266805,-400.0,0.00027671,7]
[384892744,1757620266815,-400.0,0.00027671,7]
[384892745,1757620266823,-409.02020799,0.00027671,7]
[384892746,1757620266833,-1799.18,0.00027671,7]
[384892747,1757620266842,-400.0,0.00027671,7]
[384892748,1757620266851,-400.0,0.00027671,7]
[384892749,1757620266861,-1530.74,0.00027671,7]
[384892750,1757620266870,-513.09,0.00027671,7]
[384892751,1757620266880,-400.0,0.00027671,7]
[384892752,1757620266889,-400.0,0.00027671,7]
[384892753,1757620266899,-403.55042129,0.00027671,7]
[384892754,1757620266908,-2182.5,0.00027671,7]
[384892755,1757620266917,-1897.3,0.00027671,7]
[384892756,1757620266930,-903.26,0.00027671,7]
[384892757,1757620266940,-1845.32,0.00027671,7]
[384892758,1757620266950,-435.04,0.00027671,7]
[384892759,1757620266959,-400.0,0.00027671,7]
[384892760,1757620266969,-1564.44,0.00027671,7]
[384892761,1757620266978,-3024.4,0.00027671,7]
[384892762,1757620266987,-400.0,0.00027671,7]
[384892763,1757620266996,-400.0,0.00027671,7]
[384892764,1757620267005,-400.0,0.00027671,7]
[384892765,1757620267014,-2023.59,0.00027671,7]
[384892766,1757620267025,-735.97,0.00027671,7]
[384892767,1757620267034,-400.0,0.00027671,7]
[384892768,1757620267043,-400.0,0.00027671,7]
[384892769,1757620267054,-400.0,0.00027671,7]
[384892770,1757620267063,-2354.06,0.00027671,7]
[384892771,1757620267074,-202.31178918,0.00027671,7]
[384892772,1757620267084,-408.83607962,0.00027671,7]
[384892773,1757620267094,-4384.82,0.00027671,5]
[384892774,1757620267103,-400.0,0.00027671,7]
[384892775,1757620267113,-400.0,0.00027671,7]
[384892776,1757620267123,-1559.9,0.00027671,7]
[384892777,1757620267132,-400.0,0.00027671,7]
[384892778,1757620267141,-2593.14,0.00027671,7]
[384892779,1757620267151,-404.39,0.00027671,7]
[384892780,1757620267159,-400.0,0.00027671,7]
[384892781,1757620267169,-1958.65,0.00027671,7]
[384892782,1757620267178,-2895.66,0.00027671,7]
[384892783,1757620267187,-2271.63,0.00027671,7]
[384892784,1757620267196,-1780.25,0.00027671,7]
[384892785,1757620267205,-503.46928506,0.00027671,7]
[384892786,1757620267214,-400.0,0.00027671,7]
[384892787,1757620267223,-2980.24,0.00027671,7]
[384892788,1757620267231,-400.0,0.00027671,7]
[384892789,1757620267241,-1273.42,0.00027671,7]
[384892790,1757620267250,-400.0,0.00027671,7]
[384892791,1757620267260,-403.64180962,0.00027671,7]
[384892792,1757620267268,-877.62,0.00027671,7]
[384892793,1757620267276,-400.0,0.00027671,7]
[384892794,1757620267285,-2438.08,0.00027671,7]
[384892795,1757620267293,-400.0,0.00027671,7]
[384892796,1757620267301,-400.0,0.00027671,7]
[384892797,1757620267310,-400.0,0.00027671,2]
[384892798,1757620267318,-422.54438329,0.00027671,7]
[384892799,1757620267326,-975.01,0.00027671,7]
[384892800,1757620267335,-2448.27,0.00027671,7]
[384892801,1757620267344,-400.0,0.00027671,7]
[384892802,1757620267353,-1368.9,0.00027671,7]
[384892803,1757620267363,-1022.19,0.00027671,7]
[384892804,1757620267372,-979.73,0.00027671,7]
[384892805,1757620267381,-1622.7,0.00027671,7]
[384892806,1757620267389,-400.0,0.00027671,7]
[384892807,1757620267398,-665.86,0.00027671,7]
[384892808,1757620267407,-400.0,0.00027671,7]
[384892809,1757620267416,-400.0,0.00027671,7]
[384892810,1757620267425,-894.93,0.00027671,7]
[384892811,1757620267434,-502.83,0.00027671,7]
[384892812,1757620267443,-2849.26,0.00027671,7]
[384892813,1757620267453,-400.0,0.00027671,7]
[384892814,1757620267462,-400.0,0.00027671,7]
[384892815,1757620267471,-404.02081807,0.00027671,7]
[384892816,1757620267480,-400.0,0.00027671,7]
[384892817,1757620267489,-699.62,0.00027671,7]
[384892818,1757620267498,-2054.62,0.00027671,7]
[384892819,1757620267507,-1006.24,0.00027671,7]
[384892820,1757620267516,-400.0,0.00027671,7]
[384892821,1757620267527,-425.01,0.00027671,7]
[384892822,1757620267535,-400.0,0.00027671,7]
[384892823,1757620267545,-2290.47,0.00027671,7]
[384892824,1757620267554,-2409.82,0.00027671,7]
[384892825,1757620267563,-400.0,0.00027671,7]
[384892826,1757620267573,-400.0,0.00027671,7]
[384892827,1757620267582,-400.0,0.00027671,7]
[384892828,1757620267591,-400.0,0.00027671,7]
[384892829,1757620267601,-400.0,0.00027671,7]
[384892830,1757620267610,-400.0,0.00027671,7]
[384892831,1757620267619,-412.02,0.00027671,7]
[384892832,1757620267629,-1555.46,0.00027671,7]
[384892833,1757620267638,-409.4559871,0.00027671,7]
[384892834,1757620267647,-400.0,0.00027671,7]
[384892835,1757620267656,-1529.46,0.00027671,7]
[384892836,1757620267679,-400.0,0.00027671,7]
[384892837,1757620267688,-738.26,0.00027671,7]
[384892838,1757620267697,-738.41,0.00027671,7]
[384892839,1757620267706,-403.08,0.00027671,7]
[384892840,1757620267715,-400.0,0.00027671,7]
[384892841,1757620267726,-400.0,0.00027671,7]
[384892842,1757620267735,-808.6,0.00027671,7]
[384892843,1757620267744,-400.0,0.00027671,7]
[384892844,1757620267753,-789.19,0.00027671,7]
[384892845,1757620267764,-400.0,0.00027671,7]
[384892846,1757620267773,-1952.72,0.00027671,7]
[384892847,1757620267783,-2628.68,0.00027671,7]
[384892848,1757620267792,-219.43,0.00027671,7]
[384892849,1757620267803,-400.0,0.00027671,7]
[384892850,1757620267812,-400.0,0.00027671,7]
[384892851,1757620267821,-2716.3,0.00027671,7]
[384892852,1757620267830,-654.08,0.00027671,7]
[384892853,1757620267839,-830.34,0.00027671,7]
[384892854,1757620267848,-400.0,0.00027671,7]
[384892855,1757620267858,-1471.95,0.00027671,7]
[384892856,1757620267867,-2217.68,0.00027671,7]
[384892857,1757620267877,-2907.51,0.00027671,7]
[384892858,1757620267886,-1501.77,0.00027671,7]
[384892859,1757620267895,-2286.54,0.00027671,7]
[384892860,1757620267904,-400.0,0.00027671,7]
[384892861,1757620267913,-531.12,0.00027671,7]
[384892862,1757620267922,-400.0,0.00027671,7]
[384892863,1757620267932,-400.0,0.00027671,7]
[384892864,1757620267941,-776.82,0.00027671,7]
[384892865,1757620267951,-400.0,0.00027671,7]
[384892866,1757620267960,-1725.11,0.00027671,7]
[384892867,1757620267969,-400.0,0.00027671,7]
[384892868,1757620267978,-1013.51,0.00027671,7]
[384892869,1757620267988,-507.97,0.00027671,7]
[384892870,1757620267997,-407.14570355,0.00027671,7]
[384892871,1757620268006,-1883.64,0.00027671,7]
[384892872,1757620268015,-400.0,0.00027671,7]
[384892873,1757620268024,-400.0,0.00027671,7]
[384892874,1757620268033,-1000.0,0.00027671,7]
[384892875,1757620268043,-3000.48,0.00027671,7]
[384892876,1757620268052,-2134.34,0.00027671,7]
[384892877,1757620268061,-409.65021681,0.00027671,7]
[384892878,1757620268070,-400.0,0.00027671,7]
[384892879,1757620268079,-400.0,0.00027671,7]
[384892880,1757620268087,-985.44,0.00027671,7]
[384892881,1757620268096,-400.0,0.00027671,7]
[384892882,1757620268105,-1958.22,0.00027671,7]
[384892883,1757620268113,-404.95974038,0.00027671,7]
[384892884,1757620268122,-400.0,0.00027671,7]
[384892885,1757620268131,-1766.39,0.00027671,7]
[384892886,1757620268140,-429.42209874,0.00027671,7]
[384892887,1757620268150,-400.0,0.00027671,7]
[384892888,1757620268159,-1220.19,0.00027671,7]
[384892889,1757620268167,-1849.63,0.00027671,7]
[384892890,1757620268176,-940.02,0.00027671,7]
[384892891,1757620268185,-400.0,0.00027671,7]
[384892892,1757620268196,-331.04779543,0.00027671,7]
[384892893,1757620268205,-400.0,0.00027671,7]
[384892894,1757620268214,-400.0,0.00027671,7]
[384892895,1757620268223,-400.0,0.00027671,7]
[384892896,1757620268232,-400.0,0.00027671,7]
[384892897,1757620268438,-1613.95,0.00027671,7]
[384892898,1757620268448,-400.0,0.00027671,7]
[384892899,1757620268457,-2710.31,0.00027671,7]
[384892900,1757620268466,-400.0,0.00027671,7]
[384892901,1757620268475,-400.0,0.00027671,7]
[384892902,1757620268484,-400.0,0.00027671,7]
[384892903,1757620268493,-400.0,0.00027671,7]
[384892904,1757620268502,-400.0,0.00027671,7]
[384892905,1757620268511,-600.43,0.00027671,7]
[384892906,1757620268520,-2012.87,0.00027671,7]
[384892907,1757620268530,-1899.96,0.00027671,7]
[384892908,1757620268539,-400.0,0.00027671,7]
[384892909,1757620268549,-400.0,0.00027671,7]
[384892910,1757620268558,-400.0,0.00027671,7]
[384892911,1757620268567,-2152.21,0.00027671,7]
[384892912,1757620268576,-2004.12,0.00027671,7]
[384892913,1757620268587,-370.19348842,0.00027671,7]
[384892914,1757620268596,-1220.02,0.00027671,7]
[384892915,1757620268606,-402.91175386,0.00027671,7]
[384892916,1757620268615,-400.0,0.00027671,7]
[384892917,1757620268624,-671.34,0.00027671,7]
[384892918,1757620268633,-418.29569879,0.00027671,7]
[384892919,1757620268642,-418.06377071,0.00027671,7]
[384892920,1757620268655,-400.0,0.00027671,7]
[384892921,1757620268663,-400.0,0.00027671,7]
[384892923,1757620268672,-3834.59,0.00027671,7]
[384892924,1757620268682,-2444.78,0.00027671,7]
[384892925,1757620268692,-1428.07,0.00027671,7]
[384892926,1757620268701,-400.0,0.00027671,7]
[384892927,1757620268710,-400.0,0.00027671,7]
[384892928,1757620268720,-796.27,0.00027671,7]
[384892929,1757620268732,-400.0,0.00027671,7]
[384892930,1757620268741,-400.0,0.00027671,7]
[384892931,1757620268750,-471.23,0.00027671,7]
[384892932,1757620268759,-2278.11,0.00027671,7]
[384892933,1757620268769,-400.0,0.00027671,7]
[384892934,1757620268778,-400.0,0.00027671,7]
[384892935,1757620268787,-1718.74,0.00027671,7]
[384892936,1757620268797,-400.0,0.00027671,7]
[384892937,1757620268806,-2714.56,0.00027671,7]
[384892938,1757620268815,-400.0,0.00027671,7]
[384892939,1757620268824,-915.5,0.00027671,7]
[384892940,1757620268833,-775.56,0.00027671,7]
[384892941,1757620268842,-550.4,0.00027671,7]
[384892942,1757620268851,-400.0,0.00027671,7]
[384892943,1757620268859,-2911.23,0.00027671,7]
[384892944,1757620268868,-1883.19,0.00027671,7]
[384892945,1757620268878,-400.0,0.00027671,7]
[384892946,1757620268887,-400.0,0.00027671,7]
[384892947,1757620268895,-400.0,0.00027671,7]
[384892948,1757620268904,-1659.41,0.00027671,7]
[384892949,1757620268914,-2147.98,0.00027671,7]
[384892950,1757620268923,-1955.66,0.00027671,7]
[384892951,1757620268932,-1249.3,0.00027671,7]
[384892952,1757620268941,-586.29,0.00027671,7]
[384892953,1757620268950,-400.0,0.00027671,7]
[384892954,1757620268960,-1103.79,0.00027671,7]
[384892955,1757620268969,-1786.68,0.00027671,7]
[384892956,1757620268978,-400.0,0.00027671,7]
[384892957,1757620268987,-400.0,0.00027671,7]
[384892958,1757620268996,-2651.23,0.00027671,7]
[384892959,1757620269005,-400.0,0.00027671,7]
[384892960,1757620269014,-400.0,0.00027671,7]
[384892961,1757620269023,-400.0,0.00027671,7]
[384892962,1757620269032,-400.0,0.00027671,7]
[384892963,1757620269041,-803.9,0.00027671,7]
[384892964,1757620269050,-400.0,0.00027671,7]
[384892965,1757620269059,-1173.42,0.00027671,7]
[384892966,1757620269068,-543.22,0.00027671,7]
[384892967,1757620269077,-400.0,0.00027671,7]
[384892968,1757620269086,-2151.88,0.00027671,7]
[384892969,1757620269095,-1539.73,0.00027671,7]
[384892970,1757620269104,-682.73,0.00027671,7]
[384892971,1757620269113,-400.0,0.00027671,7]
[384892972,1757620269121,-400.0,0.00027671,7]
[384892973,1757620269130,-2365.89,0.00027671,7]
[384892974,1757620269139,-400.0,0.00027671,7]
[384892975,1757620269148,-1231.09,0.00027671,7]
[384892976,1757620269156,-400.0,0.00027671,7]
[384892977,1757620269165,-400.0,0.00027671,7]
[384892978,1757620269174,-400.0,0.00027671,7]
[384892979,1757620269184,-1876.57,0.00027671,7]
[384892980,1757620269194,-366.75790421,0.00027671,7]
[384892981,1757620269203,-400.0,0.00027671,7]
[384892982,1757620269211,-561.14,0.00027671,7]
[384892983,1757620269221,-2267.37,0.00027671,7]
[384892984,1757620269230,-400.0,0.00027671,7]
[384892985,1757620269238,-987.07,0.00027671,7]
[384892986,1757620269248,-2448.05,0.00027671,7]
[384892987,1757620269257,-400.0,0.00027671,7]
[384892988,1757620269266,-400.0,0.00027671,7]
[384892989,1757620269275,-446.25,0.00027671,7]
[384892990,1757620269284,-1055.79,0.00027671,7]
[384892991,1757620269293,-438.27,0.00027671,7]
[384892992,1757620269302,-830.33,0.00027671,7]
[384892993,1757620269311,-2143.13,0.00027671,7]
[384892994,1757620269319,-1255.57,0.00027671,7]
[384892995,1757620269328,-400.0,0.00027671,7]
[384892996,1757620269337,-661.64,0.00027671,7]
[384892997,1757620269346,-888.08,0.00027671,7]
[384892998,1757620269355,-1672.53,0.00027671,7]
[384892999,1757620269364,-1035.83,0.00027671,7]
[384893000,1757620269374,-400.0,0.00027671,7]
[384893001,1757620269383,-440.66291128,0.00027671,7]
[384893002,1757620269391,-400.0,0.00027671,7]
[384893003,1757620269400,-852.73,0.00027671,7]
[384893004,1757620269409,-400.0,0.00027671,7]
[384893005,1757620269419,-1414.03,0.00027671,7]
[384893006,1757620269428,-400.0,0.00027671,7]
[384893007,1757620269437,-400.0,0.00027671,7]
[384893008,1757620269446,-2641.89,0.00027671,7]
[384893009,1757620269455,-2635.54,0.00027671,7]
[384893010,1757620269463,-680.24,0.00027671,7]
[384893011,1757620269472,-400.0,0.00027671,7]
[384893012,1757620269482,-465.33,0.00027671,7]
[384893013,1757620269490,-400.0,0.00027671,7]
[384893014,1757620269499,-400.0,0.00027671,7]
[384893015,1757620269509,-400.0,0.00027671,7]
[384893016,1757620269517,-1610.03,0.00027671,7]
[384893017,1757620269527,-400.0,0.00027671,7]
[384893018,1757620269536,-513.36,0.00027671,7]
[384893019,1757620269545,-400.0,0.00027671,7]
[384893020,1757620269553,-400.0,0.00027671,7]
[384893021,1757620269563,-400.0,0.00027671,7]
[384893022,1757620269573,-1076.35,0.00027671,7]
[384893023,1757620269584,-427.25202638,0.00027671,7]
[384893024,1757620269594,-1074.49,0.00027671,7]
[384893025,1757620269603,-1513.54,0.00027671,7]
[384893026,1757620269612,-400.0,0.00027671,7]
[384893027,1757620269621,-1839.95,0.00027671,7]
[384893028,1757620269631,-400.0,0.00027671,7]
[384893029,1757620269640,-678.06,0.00027671,7]
[384893030,1757620269649,-1601.17,0.00027671,7]
[384893031,1757620269658,-401.8372646,0.00027671,7]
[384893032,1757620269668,-400.0,0.00027671,7]
[384893033,1757620269679,-2333.55,0.00027671,7]
[384893034,1757620269688,-400.0,0.00027671,7]
[384893035,1757620269697,-400.0,0.00027671,7]
[384893036,1757620269706,-400.0,0.00027671,7]
[384893037,1757620269715,-410.1688612,0.00027671,7]
[384893038,1757620269727,-888.01,0.00027671,7]
[384893039,1757620269736,-400.0,0.00027671,7]
[384893040,1757620269745,-421.32,0.00027671,7]
[384893041,1757620269754,-2903.75,0.00027671,7]
[384893042,1757620269765,-400.0,0.00027671,7]
[384893043,1757620269774,-400.0,0.00027671,7]
[384893044,1757620269783,-1783.87,0.00027671,7]
[384893045,1757620269792,-400.0,0.00027671,7]
[384893046,1757620269802,-2141.61,0.00027671,7]
[384893047,1757620269812,-435.18856034,0.00027671,7]
[384893048,1757620269821,-745.0,0.00027671,7]
[384893049,1757620269830,-400.0,0.00027671,7]
[384893050,1757620269839,-1585.29,0.00027671,7]
[384893051,1757620269848,-400.0,0.00027671,7]
[384893052,1757620269858,-2467.19,0.00027671,7]
[384893053,1757620269867,-2317.34,0.00027671,7]
[384893054,1757620269875,-400.0,0.00027671,7]
[384893055,1757620269884,-821.08,0.00027671,7]
[384893056,1757620269893,-400.0,0.00027671,7]
[384893057,1757620269903,-1711.43,0.00027671,7]
[384893058,1757620269912,-2380.54,0.00027671,7]
[384893059,1757620269921,-2393.2,0.00027671,7]
[384893060,1757620269931,-439.54,0.00027671,7]
[384893061,1757620269940,-400.0,0.00027671,7]
[384893062,1757620269950,-400.0,0.00027671,7]
[384893063,1757620269958,-2043.61,0.00027671,7]
[384893064,1757620269967,-589.63,0.00027671,7]
[384893065,1757620269976,-400.0,0.00027671,7]
[384893066,1757620269985,-400.0,0.00027671,7]
[384893067,1757620269994,-400.0,0.00027671,7]
[384893068,1757620270003,-400.0,0.00027671,7]
[384893069,1757620270013,-400.0,0.00027671,7]
[384893070,1757620270022,-2015.12,0.00027671,7]
[384893071,1757620270031,-461.26,0.00027671,7]
[384893072,1757620270040,-400.0,0.00027671,7]
[384893073,1757620270049,-400.0,0.00027671,7]
[384893074,1757620270058,-400.0,0.00027671,7]
[384893075,1757620270068,-1740.54,0.00027671,7]
[384893076,1757620270077,-400.0,0.00027671,7]
[384893077,1757620270085,-400.0,0.00027671,7]
[384893078,1757620270094,-1659.57,0.00027671,7]
[384893079,1757620270104,-1110.1,0.00027671,7]
[384893080,1757620270113,-2031.5,0.00027671,7]
[384893081,1757620270122,-400.0,0.00027671,7]
[384893082,1757620270130,-4455.59,0.00027671,7]
[384893083,1757620270139,-400.0,0.00027671,7]
[384893084,1757620270149,-400.0,0.00027671,7]
[384893085,1757620270158,-678.23,0.00027671,7]
[384893086,1757620270167,-1725.45,0.00027671,7]
[384893087,1757620270176,-189.48897329,0.00027671,7]
[384893088,1757620270185,-1995.85,0.00027671,7]
[384893089,1757620270195,-400.0,0.00027671,7]
[384893090,1757620270204,-1535.28,0.00027671,7]